{"text_format":"3","workbook":"xlsx","n_sheets":8,"sheets":["Ohjeet","Säännölliset","Satunnaiset","Potentiaaliset","Q1-verkostoitumissuunnitelma","Q2-verkostoitumissuunnitelma","Q3-verkostoitumissuunnitelma","Q4-verkostoitumissuunnitelma"],"not_rendered":{"defined_names":7},"read":"whole","date_system":"1900"}

{"sheet":"Ohjeet","index":0,"n_rows":17,"n_cols":5,"rows_kept":17,"merged":[[0,0,0,2],[1,1,1,6],[2,1,2,6],[3,1,3,6],[4,1,4,6],[5,1,5,6],[6,1,6,6],[7,1,7,6],[8,1,8,6],[9,1,9,6],[10,1,10,6],[11,1,11,6]]}
["Yhteystietojen seuranta",null,null,"Ohjeet"]
[null,"1. Päätä, mihin luokkaan yhteyshenkilö kuuluu:"]
[null,"• Säännölliset – henkilöt, joiden kanssa haluat pitää yhteyttä hyvin säännöllisesti"]
[null,"• Satunnaiset – henkilöt, joiden kanssa haluat olla yhteydessä muutaman kerran vuodessa"]
[null,"• Potentiaaliset – henkilöt ja yritykset, joiden tiedot haluat säilyttää myöhempää yhteydenottoa varten"]
[null,"2. Avaa vastaava laskentataulukon välilehti."]
[null,"3. Kirjoita tiedot (jos haluat luoda uuden rivin soluun, paina näppäinyhdistelmää Alt+Enter Windowsissa tai Option+Return Macissa)."]
[null,"Katso täältä Excel-mobiilisovellusten uudet riviohjeet."]
[null,"4. Poista Seurantapäivä -sarakkeessa esimerkkipäivämäärä tai -kaava, kirjoita, milloin haluat ottaa yhteyttä \nja paina sitten Enter-näppäintä."]
[null,"5. Seurantapäivä -sarake on punainen, kun päivämäärä on hyvin lähellä, keltainen, kun ajankohta lähestyy ja \nvihreä, kun sinulla on paljon aikaa."]
[null,"6. Kun seurantapäivä lähestyy, väri muuttuu vastaavasti."]
[null,"7. Kun olet ottanut yhteyttä yhteyshenkilöön, kirjoita KYLLÄ sarakkeeseen Valmis? Päivämäärä näkyy tämän jälkeen harmaana. "]
[null,"8. Jos haluat ottaa yhteyttä uudelleen, korvaa KYLLÄ arvolla EI ja kirjoita uusi Seurantapäivä."]
[null,null,"Punainen","Keltainen","Vihreä"]
[null,"Säännölliset","1–3 päivän päässä","4–7 päivän päässä","Yli 8–14 päivän päässä"]
[null,"Satunnaiset","1–7 päivän päässä","8–45 päivän päässä","Yli 46–90 päivän päässä"]
[null,"Potentiaaliset","1–14 päivän päässä","15–60 päivän päässä","Yli 60–120 päivän päässä"]

{"sheet":"Säännölliset","index":1,"n_rows":7,"n_cols":8,"rows_kept":7,"merged":[[0,0,0,2]]}
["Yhteystietojen seuranta",null,null,"Säännölliset"]
[]
["Nimi","Yritys","Yhteystiedot","Missä tapasimme","Muistiinpanot","Seurantapäivä","Valmis","Keskustelun muistiinpanot"]
["Kalle Linna","Adventure Works","Projektipäällikkö\nkalle@adventure-works.com\n050 555 1234\nadventure-works.com\nlinkedin.com/in/kalle-linna","Messut 2010","Kysy tyttärestä Sannasta ja siitä, miten remontti etenee. Inhoaa suuria ryhmiä ja tulista ruokaa.",{"$f":"TODAY()+8","v":"2021-07-20"},"EI"]
["Nimi","Yrityksen nimi","Työnimike\nSähköpostiosoite\nPuhelinnumero\nVerkkosivusto\nSosiaalisen median linkit\n","Sijainti","Kirjoita muistiinpanoihin asioita, joita haluat muistaa tästä henkilöstä: missä tapasitte, mistä keskustelitte, mitä haluat ottaa esiin seuraavalla kerralla, jne.",{"$f":"TODAY()-3","v":"2021-07-09"},"KYLLÄ"]
["Nimi","Yrityksen nimi","Työnimike\nSähköpostiosoite\nPuhelinnumero\nVerkkosivusto\nSosiaalisen median linkit\n","Sijainti","Kirjoita muistiinpanoihin asioita, joita haluat muistaa tästä henkilöstä: missä tapasitte, mistä keskustelitte, mitä haluat ottaa esiin seuraavalla kerralla, jne.",{"$f":"TODAY()+-3","v":"2021-07-09"},"EI"]
["Nimi","Yrityksen nimi","Työnimike\nSähköpostiosoite\nPuhelinnumero\nVerkkosivusto\nSosiaalisen median linkit\n","Sijainti","Kirjoita muistiinpanoihin asioita, joita haluat muistaa tästä henkilöstä: missä tapasitte, mistä keskustelitte, mitä haluat ottaa esiin seuraavalla kerralla, jne.",{"$f":"TODAY()+6","v":"2021-07-18"},"EI"]

{"sheet":"Satunnaiset","index":2,"n_rows":7,"n_cols":8,"rows_kept":7,"merged":[[0,0,0,2]]}
["Yhteystietojen seuranta",null,null,"Satunnaiset"]
[]
["Nimi","Yritys","Yhteystiedot","Missä tapasimme","Muistiinpanot","Seurantapäivä","Valmis","Keskustelun muistiinpanot"]
["Kalle Linna","Adventure Works","Resurssipäällikkö\nkalle@adventure-works.com\n050 555 0123\nwww.adventure-works.com\nlinkedin.com/in/kalle-linna","Lomamatka Lapissa 2016","Hyödyllinen palkkaamisen yhteyshenkilönä ja markkinoinnissa",{"$f":"TODAY()+90","v":"2021-10-10"},"EI"]
["Nimi","Yrityksen nimi","Työnimike\nSähköpostiosoite\nPuhelinnumero\nVerkkosivusto\nSosiaalisen median linkit\n","Sijainti","Kirjoita muistiinpanoihin asioita, joita haluat muistaa tästä henkilöstä: missä tapasitte, mistä keskustelitte, mitä haluat ottaa esiin seuraavalla kerralla, jne.",{"$f":"TODAY()-3","v":"2021-07-09"},"KYLLÄ"]
["Nimi","Yrityksen nimi","Työnimike\nSähköpostiosoite\nPuhelinnumero\nVerkkosivusto\nSosiaalisen median linkit\n","Sijainti","Kirjoita muistiinpanoihin asioita, joita haluat muistaa tästä henkilöstä: missä tapasitte, mistä keskustelitte, mitä haluat ottaa esiin seuraavalla kerralla, jne.",{"$f":"TODAY()+-3","v":"2021-07-09"},"EI"]
["Nimi","Yrityksen nimi","Työnimike\nSähköpostiosoite\nPuhelinnumero\nVerkkosivusto\nSosiaalisen median linkit\n","Sijainti","Kirjoita muistiinpanoihin asioita, joita haluat muistaa tästä henkilöstä: missä tapasitte, mistä keskustelitte, mitä haluat ottaa esiin seuraavalla kerralla, jne.",{"$f":"TODAY()+40","v":"2021-08-21"},"EI"]

{"sheet":"Potentiaaliset","index":3,"n_rows":7,"n_cols":8,"rows_kept":7,"merged":[[0,0,0,2]]}
["Yhteystietojen seuranta",null,null,"Potentiaaliset"]
[]
["Nimi","Yritys","Yhteystiedot","Missä tapasimme","Muistiinpanot","Seurantapäivä","Valmis","Keskustelun muistiinpanot"]
["Kalle Linna","Freelancer","Suunnittelija\njoku@example.com\n050 555 0123\nexample.com\nlinkedin.com/in/kalle-linna","Pojan valmistujaiset 2016","Valmistunut hiljattain – todella osaava. Voi olla hyödyllinen tulevien asiakkaiden hankintaan.",{"$f":"TODAY()+89","v":"2021-10-09"},"EI"]
["Nimi","Yrityksen nimi","Työnimike\nSähköpostiosoite\nPuhelinnumero\nVerkkosivusto\nSosiaalisen median linkit\n","Sijainti","Kirjoita muistiinpanoihin asioita, joita haluat muistaa tästä henkilöstä: missä tapasitte, mistä keskustelitte, mitä haluat ottaa esiin seuraavalla kerralla, jne.",{"$f":"TODAY()-3","v":"2021-07-09"},"KYLLÄ"]
["Nimi","Yrityksen nimi","Työnimike\nSähköpostiosoite\nPuhelinnumero\nVerkkosivusto\nSosiaalisen median linkit\n","Sijainti","Kirjoita muistiinpanoihin asioita, joita haluat muistaa tästä henkilöstä: missä tapasitte, mistä keskustelitte, mitä haluat ottaa esiin seuraavalla kerralla, jne.",{"$f":"TODAY()+-3","v":"2021-07-09"},"EI"]
["Nimi","Yrityksen nimi","Työnimike\nSähköpostiosoite\nPuhelinnumero\nVerkkosivusto\nSosiaalisen median linkit\n","Sijainti","Kirjoita muistiinpanoihin asioita, joita haluat muistaa tästä henkilöstä: missä tapasitte, mistä keskustelitte, mitä haluat ottaa esiin seuraavalla kerralla, jne.",{"$f":"TODAY()+30","v":"2021-08-11"},"EI"]

{"sheet":"Q1-verkostoitumissuunnitelma","index":4,"n_rows":20,"n_cols":6,"rows_kept":20,"merged":[[0,0,0,3],[2,0,2,3],[4,0,4,3],[14,5,17,5],[18,0,18,3]]}
["Verkoston laajennussuunnitelma"]
["Ohjeet"]
["Kirjoita, miten aiot laajentaa verkostoasi tällä vuosineljänneksellä (esim. soittaa lisää puheluita, matkustaa enemmän, jne.) Aina kun saat uuden yhteystiedon, muuta Todelliset hankitut yhteystiedot -lukua, jotta pysyt ajan tasalla ja näet, miten lähellä tavoitettasi olet."]
[]
["Verkoston laajentaminen tällä vuosineljänneksellä"]
["1. Soita lisää puheluita"]
["2. Matkusta enemmän"]
[]
[]
[]
[]
[]
[]
["Neljännesvuosittainen yhteystietojen tavoite","Tavoiteaika","Todelliset hankitut neljännesvuosittaiset yhteystiedot","Tulokset"]
[20,{"$f":"TODAY()","v":"2021-07-12"},12,{"$f":"IF(tblGoals[[#This Row],[Neljännesvuosittainen yhteystietojen tavoite]]>0,tblGoals[[#This Row],[Todelliset hankitut neljännesvuosittaiset yhteystiedot]]/tblGoals[[#This Row],[Neljännesvuosittainen yhteystietojen tavoite]],\"\")","v":{"v":0.6,"d":"60%"}},null,"0–25 %\n26–50 %\n51–75 %\n76–100 %\n\nVäri muuttuu saavutetun prosenttiosuuden perusteella"]
[{"$nulls":3},{"$f":"IF(tblGoals[[#This Row],[Neljännesvuosittainen yhteystietojen tavoite]]>0,tblGoals[[#This Row],[Todelliset hankitut neljännesvuosittaiset yhteystiedot]]/tblGoals[[#This Row],[Neljännesvuosittainen yhteystietojen tavoite]],\"\")","v":""}]
[{"$nulls":3},{"$f":"IF(tblGoals[[#This Row],[Neljännesvuosittainen yhteystietojen tavoite]]>0,tblGoals[[#This Row],[Todelliset hankitut neljännesvuosittaiset yhteystiedot]]/tblGoals[[#This Row],[Neljännesvuosittainen yhteystietojen tavoite]],\"\")","v":""}]
[]
["Pohdintaa tuloksesta / Muistiinpanoja parannuskohteista"]
["Lähellä oli. Yritä soittaa ennemmin lounasaikaan."]

{"sheet":"Q2-verkostoitumissuunnitelma","index":5,"n_rows":20,"n_cols":6,"rows_kept":20,"merged":[[0,0,0,3],[2,0,2,3],[4,0,4,3],[14,5,17,5],[18,0,18,3]]}
["Verkoston laajennussuunnitelma"]
["Ohjeet"]
["Kirjoita, miten aiot laajentaa verkostoasi tällä vuosineljänneksellä (esim. soittaa lisää puheluita, matkustaa enemmän, jne.) Aina kun saat uuden yhteystiedon, muuta Todelliset hankitut yhteystiedot -lukua, jotta pysyt ajan tasalla ja näet, miten lähellä tavoitettasi olet."]
[]
["Verkoston laajentaminen tällä vuosineljänneksellä"]
["1. Soita lisää puheluita"]
["2. Matkusta enemmän"]
[]
[]
[]
[]
[]
[]
["Neljännesvuosittainen yhteystietojen tavoite","Tavoiteaika","Todelliset hankitut neljännesvuosittaiset yhteystiedot","Tulokset"]
[20,{"$f":"TODAY()","v":"2021-07-12"},12,{"$f":"IF(tblGoals3[[#This Row],[Neljännesvuosittainen yhteystietojen tavoite]]>0,tblGoals3[[#This Row],[Todelliset hankitut neljännesvuosittaiset yhteystiedot]]/tblGoals3[[#This Row],[Neljännesvuosittainen yhteystietojen tavoite]],\"\")","v":{"v":0.6,"d":"60%"}},null,"0–25 %\n26–50 %\n51–75 %\n76–100 %\n\nVäri muuttuu saavutetun prosenttiosuuden perusteella"]
[{"$nulls":3},{"$f":"IF(tblGoals3[[#This Row],[Neljännesvuosittainen yhteystietojen tavoite]]>0,tblGoals3[[#This Row],[Todelliset hankitut neljännesvuosittaiset yhteystiedot]]/tblGoals3[[#This Row],[Neljännesvuosittainen yhteystietojen tavoite]],\"\")","v":""}]
[{"$nulls":3},{"$f":"IF(tblGoals3[[#This Row],[Neljännesvuosittainen yhteystietojen tavoite]]>0,tblGoals3[[#This Row],[Todelliset hankitut neljännesvuosittaiset yhteystiedot]]/tblGoals3[[#This Row],[Neljännesvuosittainen yhteystietojen tavoite]],\"\")","v":""}]
[]
["Pohdintaa tuloksesta / Muistiinpanoja parannuskohteista"]
["Lähellä oli. Yritä soittaa ennemmin lounasaikaan."]

{"sheet":"Q3-verkostoitumissuunnitelma","index":6,"n_rows":20,"n_cols":6,"rows_kept":20,"merged":[[0,0,0,3],[2,0,2,3],[4,0,4,3],[14,5,17,5],[18,0,18,3]]}
["Verkoston laajennussuunnitelma"]
["Ohjeet"]
["Kirjoita, miten aiot laajentaa verkostoasi tällä vuosineljänneksellä (esim. soittaa lisää puheluita, matkustaa enemmän, jne.) Aina kun saat uuden yhteystiedon, muuta Todelliset hankitut yhteystiedot -lukua, jotta pysyt ajan tasalla ja näet, miten lähellä tavoitettasi olet."]
[]
["Verkoston laajentaminen tällä vuosineljänneksellä"]
["1. Soita lisää puheluita"]
["2. Matkusta enemmän"]
[]
[]
[]
[]
[]
[]
["Neljännesvuosittainen yhteystietojen tavoite","Tavoiteaika","Todelliset hankitut neljännesvuosittaiset yhteystiedot","Tulokset"]
[20,{"$f":"TODAY()","v":"2021-07-12"},12,{"$f":"IF(tblGoals34[[#This Row],[Neljännesvuosittainen yhteystietojen tavoite]]>0,tblGoals34[[#This Row],[Todelliset hankitut neljännesvuosittaiset yhteystiedot]]/tblGoals34[[#This Row],[Neljännesvuosittainen yhteystietojen tavoite]],\"\")","v":{"v":0.6,"d":"60%"}},null,"0–25 %\n26–50 %\n51–75 %\n76–100 %\n\nVäri muuttuu saavutetun prosenttiosuuden perusteella"]
[{"$nulls":3},{"$f":"IF(tblGoals34[[#This Row],[Neljännesvuosittainen yhteystietojen tavoite]]>0,tblGoals34[[#This Row],[Todelliset hankitut neljännesvuosittaiset yhteystiedot]]/tblGoals34[[#This Row],[Neljännesvuosittainen yhteystietojen tavoite]],\"\")","v":""}]
[{"$nulls":3},{"$f":"IF(tblGoals34[[#This Row],[Neljännesvuosittainen yhteystietojen tavoite]]>0,tblGoals34[[#This Row],[Todelliset hankitut neljännesvuosittaiset yhteystiedot]]/tblGoals34[[#This Row],[Neljännesvuosittainen yhteystietojen tavoite]],\"\")","v":""}]
[]
["Pohdintaa tuloksesta / Muistiinpanoja parannuskohteista"]
["Lähellä oli. Yritä soittaa ennemmin lounasaikaan."]

{"sheet":"Q4-verkostoitumissuunnitelma","index":7,"n_rows":20,"n_cols":6,"rows_kept":20,"merged":[[0,0,0,3],[2,0,2,3],[4,0,4,3],[14,5,17,5],[18,0,18,3]]}
["Verkoston laajennussuunnitelma"]
["Ohjeet"]
["Kirjoita, miten aiot laajentaa verkostoasi tällä vuosineljänneksellä (esim. soittaa lisää puheluita, matkustaa enemmän, jne.) Aina kun saat uuden yhteystiedon, muuta Todelliset hankitut yhteystiedot -lukua, jotta pysyt ajan tasalla ja näet, miten lähellä tavoitettasi olet."]
[]
["Verkoston laajentaminen tällä vuosineljänneksellä"]
["1. Soita lisää puheluita"]
["2. Matkusta enemmän"]
[]
[]
[]
[]
[]
[]
["Neljännesvuosittainen yhteystietojen tavoite","Tavoiteaika","Todelliset hankitut neljännesvuosittaiset yhteystiedot","Tulokset"]
[20,{"$f":"TODAY()","v":"2021-07-12"},12,{"$f":"IF(tblGoals348[[#This Row],[Neljännesvuosittainen yhteystietojen tavoite]]>0,tblGoals348[[#This Row],[Todelliset hankitut neljännesvuosittaiset yhteystiedot]]/tblGoals348[[#This Row],[Neljännesvuosittainen yhteystietojen tavoite]],\"\")","v":{"v":0.6,"d":"60%"}},null,"0–25 %\n26–50 %\n51–75 %\n76–100 %\n\nVäri muuttuu saavutetun prosenttiosuuden perusteella"]
[{"$nulls":3},{"$f":"IF(tblGoals348[[#This Row],[Neljännesvuosittainen yhteystietojen tavoite]]>0,tblGoals348[[#This Row],[Todelliset hankitut neljännesvuosittaiset yhteystiedot]]/tblGoals348[[#This Row],[Neljännesvuosittainen yhteystietojen tavoite]],\"\")","v":""}]
[{"$nulls":3},{"$f":"IF(tblGoals348[[#This Row],[Neljännesvuosittainen yhteystietojen tavoite]]>0,tblGoals348[[#This Row],[Todelliset hankitut neljännesvuosittaiset yhteystiedot]]/tblGoals348[[#This Row],[Neljännesvuosittainen yhteystietojen tavoite]],\"\")","v":""}]
[]
["Pohdintaa tuloksesta / Muistiinpanoja parannuskohteista"]
["Lähellä oli. Yritä soittaa ennemmin lounasaikaan."]